Workbook

Sheet Overview
B4: The Acquisition of Dracula Glass
B5: Case A - Exhibits
B8: Worksheet | C8: Description
B9: A1 | C9: ='A1'!A3 -> St Germain, Revenue by Segment and by Geography
B10: A2 | C10: ='A2'!A3 -> Dracula Glass, Historical Financial Statements
B11: A3 | C11: ='A3'!A3 -> Dracula Glass, Historical Ratio Analysis
B12: A4 | C12: ='A4'!A3 -> Competitor Financials
B13: A5 | C13: ='A5'!A3 -> ROIC Tree, Glass Containers
B14: A6 | C14: ='A6'!A3 -> ROIC Tree, Flat Glass
B15: A7 | C15: ='A9'!A3 -> Brazilian Glass Container Market
B16: A8 | C16: Financial Forecasts,Glass Containers
B17: A9 | C17: Financial Forecasts,Flat Glass
B19: Revenue | C19: Model to project revenue, based on productivity.

Sheet A1
A2: Exhibit 1 | N2: St. Germain, Financials
A3: St Germain, Revenue by Segment and by Geography
A5: Millions of euros | G5: as % of Revenue | L5: Growth rate
B6: 2016 | C6: =B6+1 -> 2017 | D6: =C6+1 -> 2018 | E6: =D6+1 & "F" -> 2019F | G6: =B6 -> 2016 | H6: =C6 -> 2017 | I6: =D6 -> 2018 | J6: =E6 -> 2019F | L6: =C6 -> 2017 | M6: =D6 -> 2018 | N6: =E6 -> 2019F
A7: Construction products | B7: 12525 | C7: 12963 | D7: 13339 | E7: 13819 | G7: =B7/B$11 -> 0.3568274408 | H7: 0.3583116811 | I7: 0.3581420325 | J7: 0.3587859591 | L7: =C7/B7-1 -> 0.03497005988 | M7: 0.02900563141 | N7: 0.0359847065
A8: Consumer packaging | B8: 8531 | C8: 8760 | D8: 9023 | E8: 9248 | G8: 0.2430415088 | H8: 0.2421361048 | I8: 0.2422607061 | J8: 0.2401080071 | L8: 0.02684327746 | M8: 0.03002283105 | N8: 0.02493627397
A9: High-performance materials | B9: 7540 | C9: 8015 | D9: 8480 | E9: 9014 | G9: 0.2148086949 | H9: 0.2215434795 | I9: 0.227681568 | J9: 0.2340326098 | L9: 0.06299734748 | M9: 0.05801621959 | N9: 0.06297169811
A10: Flat glass | B10: 6505 | C10: 6440 | D10: 6403 | E10: 6435 | G10: 0.1853223555 | H10: 0.1780087346 | I10: 0.1719156934 | J10: 0.167073424 | L10: -0.009992313605 | M10: -0.005745341615 | N10: 0.004997657348
A11: Total revenue | B11: 35101 | C11: 36178 | D11: 37245 | E11: 38516 | G11: =SUM(G7:G10) -> 1 | H11: =SUM(H7:H10) -> 1 | I11: =SUM(I7:I10) -> 1 | J11: =SUM(J7:J10) -> 1 | L11: 0.03068288653 | M11: 0.02949306208 | N11: 0.03412538596
A14: St. Germain
A15: Revenue by Geography
A17: Millions of euros | G17: as % of Revenue | L17: Growth rate
B18: =B6 -> 2016 | C18: =C6 -> 2017 | D18: =D6 -> 2018 | E18: =E6 -> 2019F | G18: =G6 -> 2016 | H18: =H6 -> 2017 | I18: =I6 -> 2018 | J18: =J6 -> 2019F | L18: =L6 -> 2017 | M18: =M6 -> 2018 | N18: =N6 -> 2019F
A19: France | B19: 9512.3 | C19: 9443 | D19: 9460 | E19: 9475 | G19: =B19/B$11 -> 0.2709979773 | H19: 0.2610149815 | I19: 0.2539938247 | J19: 0.2460016616 | L19: =C19/B19-1 -> -0.00728530429 | M19: 0.001800275336 | N19: 0.001585623679
A20: Other Western Europe | B20: 14496.7 | C20: 14906 | D20: 15345 | E20: 15946 | G20: 0.4129996296 | H20: 0.4120183537 | I20: 0.412001611 | J20: 0.4140097622 | L20: 0.02823401188 | M20: 0.02945122769 | N20: 0.03916585207
A21: North America | B21: 6563.8 | C21: 7055 | D21: 7337 | E21: 7665 | G21: 0.1869975214 | H21: 0.1950080159 | I21: 0.196992885 | J21: 0.1990082044 | L21: 0.07483469941 | M21: 0.03997165131 | N21: 0.04470492027
A22: Latin America | B22: 4528 | C22: 4776 | D22: 5103 | E22: 5431 | G22: 0.1289991738 | H22: 0.1320139311 | I22: 0.1370116794 | J22: 0.141006335 | L22: 0.05477031802 | M22: 0.06846733668 | N22: 0.06427591613
A23: Total revenue | B23: 35100.8 | C23: 36180 | D23: 37245 | E23: 38517 | G23: 1 | H23: 1 | I23: 1 | J23: 1 | L23: 0.03074573799 | M23: 0.02943615257 | N23: 0.0341522352
A25: Source: St. Germain Annual Reports

Sheet A2
A2: Exhibit 2 | L2: Dracula Glass, Financials
A3: Dracula Glass, Historical Financial Statements
B5: Glass Containers | F5: Flat Glass | J5: Dracula Glass
A7: $R millions | B7: ='A1'!$B$6 -> 2016 | C7: =B7+1 -> 2017 | D7: =C7+1 -> 2018 | F7: =B7 -> 2016 | G7: =C7 -> 2017 | H7: =D7 -> 2018 | J7: =B7 -> 2016 | K7: =C7 -> 2017 | L7: =D7 -> 2018
A8: Revenues | B8: 4228 | C8: 4401 | D8: 4590 | F8: 3111 | G8: 3282 | H8: 3443 | J8: =B8+F8 -> 7339 | K8: 7683 | L8: 8033
A9: Raw materials | B9: -1653 | C9: -1787 | D9: -1850 | F9: -1907 | G9: -2002 | H9: -2073 | J9: -3560 | K9: -3789 | L9: -3923
A10: Forging expenses | B10: -1158 | C10: -1171 | D10: -1262 | F10: -594 | G10: -630 | H10: -651 | J10: -1752 | K10: -1801 | L10: -1913
A11: Depreciation | B11: -130 | C11: -131 | D11: -142 | F11: -74 | G11: -80 | H11: -90 | J11: -204 | K11: -211 | L11: -232
A12: Gross profit | B12: =SUM(B8:B11) -> 1287 | C12: =SUM(C8:C11) -> 1312 | D12: =SUM(D8:D11) -> 1336 | F12: =SUM(F8:F11) -> 536 | G12: =SUM(G8:G11) -> 570 | H12: =SUM(H8:H11) -> 629 | J12: =SUM(J8:J11) -> 1823 | K12: =SUM(K8:K11) -> 1882 | L12: =SUM(L8:L11) -> 1965
A14: Selling and support costs | B14: -829 | C14: -871 | D14: -890 | F14: -417 | G14: -430 | H14: -479 | J14: =B14+F14 -> -1246 | K14: =C14+G14 -> -1301 | L14: =D14+H14 -> -1369
A15: Operating profit | B15: =SUM(B12:B14) -> 458 | C15: =SUM(C12:C14) -> 441 | D15: =SUM(D12:D14) -> 446 | F15: =SUM(F12:F14) -> 119 | G15: =SUM(G12:G14) -> 140 | H15: =SUM(H12:H14) -> 150 | J15: =SUM(J12:J14) -> 577 | K15: =SUM(K12:K14) -> 581 | L15: =SUM(L12:L14) -> 596
H17: Interest expense | J17: =J8/K8*K17 -> -29.25334838 | K17: -30.6245368 | L17: -25.91217065
H18: Pre-tax profit | J18: =SUM(J15:J17) -> 547.7466516 | K18: =SUM(K15:K17) -> 550.3754632 | L18: =SUM(L15:L17) -> 570.0878293
H20: Income taxes | J20: -164.2523287 | K20: -165.0413382 | L20: -171.1322586
H21: Net income | J21: =SUM(J18:J20) -> 383.4943229 | K21: =SUM(K18:K20) -> 385.334125 | L21: =SUM(L18:L20) -> 398.9555707
A24: Dracula Glass
A25: Balance Sheet | B25: =B5 -> Glass Containers | F25: =F5 -> Flat Glass | J25: =J5 -> Dracula Glass
A27: $R millions | B27: =$B$7 -> 2016 | C27: =B27+1 -> 2017 | D27: =C27+1 -> 2018 | F27: =B27 -> 2016 | G27: =C27 -> 2017 | H27: =D27 -> 2018 | J27: =B27 -> 2016 | K27: =C27 -> 2017 | L27: =D27 -> 2018
A28: Working cash | B28: 70 | C28: 74 | D28: 74 | F28: 50 | G28: 40 | H28: 48 | J28: =B28+F28 -> 120 | K28: 114 | L28: 122
A29: Inventory | B29: 638 | C29: 676 | D29: 729 | F29: 392 | G29: 379 | H29: 403 | J29: 1030 | K29: 1055 | L29: 1132
A30: Accounts receivable | B30: 416 | C30: 422 | D30: 443 | F30: 344 | G30: 351 | H30: 386 | J30: 760 | K30: 773 | L30: 829
A31: Operating current assets | B31: =SUM(B28:B30) -> 1124 | C31: =SUM(C28:C30) -> 1172 | D31: =SUM(D28:D30) -> 1246 | F31: =SUM(F28:F30) -> 786 | G31: =SUM(G28:G30) -> 770 | H31: =SUM(H28:H30) -> 837 | J31: =SUM(J28:J30) -> 1910 | K31: =SUM(K28:K30) -> 1942 | L31: =SUM(L28:L30) -> 2083
A33: Property, plant & eqpt, net | B33: 1323 | C33: 1351 | D33: 1432 | F33: 681 | G33: 745 | H33: 823 | J33: =B33+F33 -> 2004 | K33: =C33+G33 -> 2096 | L33: =D33+H33 -> 2255
A34: Total assets | B34: =SUM(B31:B33) -> 2447 | C34: =SUM(C31:C33) -> 2523 | D34: =SUM(D31:D33) -> 2678 | F34: =SUM(F31:F33) -> 1467 | G34: =SUM(G31:G33) -> 1515 | H34: =SUM(H31:H33) -> 1660 | J34: =SUM(J31:J33) -> 3914 | K34: =SUM(K31:K33) -> 4038 | L34: =SUM(L31:L33) -> 4338
A37: $R millions | B37: =$B$7 -> 2016 | C37: =B37+1 -> 2017 | D37: =C37+1 -> 2018 | F37: =B37 -> 2016 | G37: =C37 -> 2017 | H37: =D37 -> 2018 | J37: =B37 -> 2016 | K37: =C37 -> 2017 | L37: =D37 -> 2018
A38: Accounts payable | B38: 328 | C38: 369 | D38: 370 | F38: 266 | G38: 261 | H38: 282 | J38: =B38+F38 -> 594 | K38: 630 | L38: 652
A39: Accrued wages | B39: 115 | C39: 124 | D39: 123 | F39: 86 | G39: 89 | H39: 94 | J39: 201 | K39: 213 | L39: 217
A40: Customer prepayments | B40: 0 | C40: 0 | D40: 0 | F40: 0 | G40: 0 | H40: 0 | J40: 0 | K40: 0 | L40: 0
A41: Operating current liabilities | B41: =SUM(B38:B40) -> 443 | C41: =SUM(C38:C40) -> 493 | D41: =SUM(D38:D40) -> 493 | F41: =SUM(F38:F40) -> 352 | G41: =SUM(G38:G40) -> 350 | H41: =SUM(H38:H40) -> 376 | J41: =SUM(J38:J40) -> 795 | K41: =SUM(K38:K40) -> 843 | L41: =SUM(L38:L40) -> 869
H43: Debt | J43: =J45-J44-J41 -> 509 | K43: =K45-K44-K41 -> 430.9614177 | L43: =L45-L44-L41 -> 545.2379763
H44: Equity | J44: 2610 | K44: 2764.038582 | L44: 2923.762024
H45: Liab & Equity | J45: =J34 -> 3914 | K45: =K34 -> 4038 | L45: =L34 -> 4338

Sheet A3
A2: Exhibit 3 | M2: Dracula Glass, Financial Ratios
A3: Dracula Glass, Historical Ratio Analysis
C5: Glass Containers | G5: Flat Glass | K5: Dracula Glass
B7: $R millions | C7: ='A1'!$B$6 -> 2016 | D7: =C7+1 -> 2017 | E7: =D7+1 -> 2018 | G7: =C7 -> 2016 | H7: =D7 -> 2017 | I7: =E7 -> 2018 | K7: =C7 -> 2016 | L7: =D7 -> 2017 | M7: =E7 -> 2018
B8: Revenue growth rate | C8: n/a | D8: ='A2'!C8/'A2'!B8-1 -> 0.04091769158 | E8: ='A2'!D8/'A2'!C8-1 -> 0.04294478528 | G8: n/a | H8: ='A2'!G8/'A2'!F8-1 -> 0.05496624879 | I8: ='A2'!H8/'A2'!G8-1 -> 0.04905545399 | K8: n/a | L8: ='A2'!K8/'A2'!J8-1 -> 0.04687287096 | M8: ='A2'!L8/'A2'!K8-1 -> 0.0455551217
A9: % of Sales | B9: Raw materials | C9: =-'A2'!B9/'A2'!B$8 -> 0.3909649953 | D9: =-'A2'!C9/'A2'!C$8 -> 0.4060440809 | E9: =-'A2'!D9/'A2'!D$8 -> 0.4030501089 | G9: =-'A2'!F9/'A2'!F$8 -> 0.6129861781 | H9: =-'A2'!G9/'A2'!G$8 -> 0.6099939062 | I9: =-'A2'!H9/'A2'!H$8 -> 0.6020911995 | K9: =-'A2'!J9/'A2'!J$8 -> 0.4850797111 | L9: =-'A2'!K9/'A2'!K$8 -> 0.4931667317 | M9: =-'A2'!L9/'A2'!L$8 -> 0.4883605129
B10: Forging expenses | C10: =-'A2'!B10/'A2'!B$8 -> 0.2738883633 | D10: =-'A2'!C10/'A2'!C$8 -> 0.2660758918 | E10: =-'A2'!D10/'A2'!D$8 -> 0.2749455338 | G10: =-'A2'!F10/'A2'!F$8 -> 0.1909353905 | H10: =-'A2'!G10/'A2'!G$8 -> 0.1919561243 | I10: =-'A2'!H10/'A2'!H$8 -> 0.1890792913 | K10: =-'A2'!J10/'A2'!J$8 -> 0.2387246219 | L10: =-'A2'!K10/'A2'!K$8 -> 0.2344136405 | M10: =-'A2'!L10/'A2'!L$8 -> 0.2381426615
B11: Depreciation | C11: =-'A2'!B11/'A2'!B$8 -> 0.0307473983 | D11: =-'A2'!C11/'A2'!C$8 -> 0.02976596228 | E11: =-'A2'!D11/'A2'!D$8 -> 0.03093681917 | G11: =-'A2'!F11/'A2'!F$8 -> 0.02378656381 | H11: =-'A2'!G11/'A2'!G$8 -> 0.02437538087 | I11: =-'A2'!H11/'A2'!H$8 -> 0.02613999419 | K11: =-'A2'!J11/'A2'!J$8 -> 0.02779670255 | L11: =-'A2'!K11/'A2'!K$8 -> 0.02746323051 | M11: =-'A2'!L11/'A2'!L$8 -> 0.02888086643
B12: Gross profit | C12: ='A2'!B12/'A2'!B$8 -> 0.3043992431 | D12: ='A2'!C12/'A2'!C$8 -> 0.298114065 | E12: ='A2'!D12/'A2'!D$8 -> 0.2910675381 | G12: ='A2'!F12/'A2'!F$8 -> 0.1722918676 | H12: ='A2'!G12/'A2'!G$8 -> 0.1736745887 | I12: ='A2'!H12/'A2'!H$8 -> 0.182689515 | K12: ='A2'!J12/'A2'!J$8 -> 0.2483989644 | L12: ='A2'!K12/'A2'!K$8 -> 0.2449563972 | M12: ='A2'!L12/'A2'!L$8 -> 0.2446159592
B14: Selling and support costs | C14: =-'A2'!B14/'A2'!B$8 -> 0.1960737938 | D14: =-'A2'!C14/'A2'!C$8 -> 0.197909566 | E14: =-'A2'!D14/'A2'!D$8 -> 0.1938997821 | G14: =-'A2'!F14/'A2'!F$8 -> 0.1340405014 | H14: =-'A2'!G14/'A2'!G$8 -> 0.1310176722 | I14: =-'A2'!H14/'A2'!H$8 -> 0.139122858 | K14: =-'A2'!J14/'A2'!J$8 -> 0.1697778989 | L14: =-'A2'!K14/'A2'!K$8 -> 0.1693348952 | M14: =-'A2'!L14/'A2'!L$8 -> 0.1704220092
B15: Operating margin | C15: ='A2'!B15/'A2'!B$8 -> 0.1083254494 | D15: ='A2'!C15/'A2'!C$8 -> 0.100204499 | E15: ='A2'!D15/'A2'!D$8 -> 0.09716775599 | G15: ='A2'!F15/'A2'!F$8 -> 0.03825136612 | H15: ='A2'!G15/'A2'!G$8 -> 0.04265691651 | I15: ='A2'!H15/'A2'!H$8 -> 0.04356665699 | K15: ='A2'!J15/'A2'!J$8 -> 0.07862106554 | L15: ='A2'!K15/'A2'!K$8 -> 0.07562150202 | M15: ='A2'!L15/'A2'!L$8 -> 0.07419394996
I17: Interest rate | K17: =L17 -> 0.06016608409 | L17: =-'A2'!K17/'A2'!J43 -> 0.06016608409 | M17: =-'A2'!L17/'A2'!K43 -> 0.06012642801
I18: Pre-tax profit | K18: ='A2'!J18/'A2'!J$8 -> 0.07463505268 | L18: ='A2'!K18/'A2'!K$8 -> 0.07163548916 | M18: ='A2'!L18/'A2'!L$8 -> 0.0709682347
I20: Tax rate | K20: =-'A2'!J20/'A2'!J18 -> 0.2998691607 | L20: =-'A2'!K20/'A2'!K18 -> 0.2998704507 | M20: =-'A2'!L20/'A2'!L18 -> 0.3001857781
I21: Net income | K21: ='A2'!J21/'A2'!J$8 -> 0.05225430207 | L21: ='A2'!K21/'A2'!K$8 -> 0.05015412273 | M21: ='A2'!L21/'A2'!L$8 -> 0.04966457995
B24: Dracula Glass
B25: Balance Sheet | C25: =C5 -> Glass Containers | G25: =G5 -> Flat Glass | K25: =K5 -> Dracula Glass
B27: $R millions | C27: =$C$7 -> 2016 | D27: =C27+1 -> 2017 | E27: =D27+1 -> 2018 | G27: =C27 -> 2016 | H27: =D27 -> 2017 | I27: =E27 -> 2018 | K27: =G27 -> 2016 | L27: =H27 -> 2017 | M27: =I27 -> 2018
A28: In Days Sales | B28: Working cash | C28: =365*'A2'!B28/'A2'!B$8 -> 6.043046358 | D28: =365*'A2'!C28/'A2'!C$8 -> 6.137241536 | E28: =365*'A2'!D28/'A2'!D$8 -> 5.88453159 | G28: =365*'A2'!F28/'A2'!F$8 -> 5.866280939 | H28: =365*'A2'!G28/'A2'!G$8 -> 4.448507008 | I28: =365*'A2'!H28/'A2'!H$8 -> 5.088585536 | K28: =365*'A2'!J28/'A2'!J$8 -> 5.968115547 | L28: =365*'A2'!K28/'A2'!K$8 -> 5.415853182 | M28: =365*'A2'!L28/'A2'!L$8 -> 5.543383543
B29: Inventory | C29: =365*'A2'!B29/'A2'!B$8 -> 55.07805109 | D29: =365*'A2'!C29/'A2'!C$8 -> 56.06453079 | E29: =365*'A2'!D29/'A2'!D$8 -> 57.97058824 | G29: =365*'A2'!F29/'A2'!F$8 -> 45.99164256 | H29: =365*'A2'!G29/'A2'!G$8 -> 42.1496039 | I29: =365*'A2'!H29/'A2'!H$8 -> 42.72291606 | K29: =365*'A2'!J29/'A2'!J$8 -> 51.22632511 | L29: =365*'A2'!K29/'A2'!K$8 -> 50.12039568 | M29: =365*'A2'!L29/'A2'!L$8 -> 51.43532927
B30: Accounts receivable | C30: =365*'A2'!B30/'A2'!B$8 -> 35.91296121 | D30: =365*'A2'!C30/'A2'!C$8 -> 34.99886389 | E30: =365*'A2'!D30/'A2'!D$8 -> 35.22766885 | G30: =365*'A2'!F30/'A2'!F$8 -> 40.36001286 | H30: =365*'A2'!G30/'A2'!G$8 -> 39.03564899 | I30: =365*'A2'!H30/'A2'!H$8 -> 40.92070868 | K30: =365*'A2'!J30/'A2'!J$8 -> 37.79806513 | L30: =365*'A2'!K30/'A2'!K$8 -> 36.72328518 | M30: =365*'A2'!L30/'A2'!L$8 -> 37.66774555
B31: Operating current assets | C31: =365*'A2'!B31/'A2'!B$8 -> 97.03405866 | D31: =365*'A2'!C31/'A2'!C$8 -> 97.20063622 | E31: =365*'A2'!D31/'A2'!D$8 -> 99.08278867 | G31: =365*'A2'!F31/'A2'!F$8 -> 92.21793635 | H31: =365*'A2'!G31/'A2'!G$8 -> 85.6337599 | I31: =365*'A2'!H31/'A2'!H$8 -> 88.73221028 | K31: =365*'A2'!J31/'A2'!J$8 -> 94.99250579 | L31: =365*'A2'!K31/'A2'!K$8 -> 92.25953404 | M31: =365*'A2'!L31/'A2'!L$8 -> 94.64645836
A33: % of Sales | B33: PP&E / Revenues | C33: ='A2'!B33/'A2'!B$8 -> 0.3129139073 | D33: ='A2'!C33/'A2'!C$8 -> 0.3069756873 | E33: ='A2'!D33/'A2'!D$8 -> 0.3119825708 | G33: ='A2'!F33/'A2'!F$8 -> 0.218900675 | H33: ='A2'!G33/'A2'!G$8 -> 0.2269957343 | I33: ='A2'!H33/'A2'!H$8 -> 0.2390357247 | K33: ='A2'!J33/'A2'!J$8 -> 0.273061725 | L33: ='A2'!K33/'A2'!K$8 -> 0.2728101002 | M33: ='A2'!L33/'A2'!L$8 -> 0.2807170422
B34: Total assets | C34: ='A2'!B34/'A2'!B$8 -> 0.5787606433 | D34: ='A2'!C34/'A2'!C$8 -> 0.5732788003 | E34: ='A2'!D34/'A2'!D$8 -> 0.5834422658 | G34: ='A2'!F34/'A2'!F$8 -> 0.4715525554 | H34: ='A2'!G34/'A2'!G$8 -> 0.4616087751 | I34: ='A2'!H34/'A2'!H$8 -> 0.4821376706 | K34: ='A2'!J34/'A2'!J$8 -> 0.5333151656 | L34: ='A2'!K34/'A2'!K$8 -> 0.5255759469 | M34: ='A2'!L34/'A2'!L$8 -> 0.5400224076
B37: $R millions | C37: =$C$7 -> 2016 | D37: =C37+1 -> 2017 | E37: =D37+1 -> 2018 | G37: =C37 -> 2016 | H37: =G37+1 -> 2017 | I37: =H37+1 -> 2018 | K37: =G37 -> 2016 | L37: =K37+1 -> 2017 | M37: =L37+1 -> 2018
A38: In Days Sales | B38: Accounts payable | C38: =365*'A2'!B38/'A2'!B$8 -> 28.31598865 | D38: =365*'A2'!C38/'A2'!C$8 -> 30.60327198 | E38: =365*'A2'!D38/'A2'!D$8 -> 29.42265795 | G38: =365*'A2'!F38/'A2'!F$8 -> 31.20861459 | H38: =365*'A2'!G38/'A2'!G$8 -> 29.02650823 | I38: =365*'A2'!H38/'A2'!H$8 -> 29.89544002 | K38: =365*'A2'!J38/'A2'!J$8 -> 29.54217196 | L38: =365*'A2'!K38/'A2'!K$8 -> 29.92971496 | M38: =365*'A2'!L38/'A2'!L$8 -> 29.62529566
B39: Accrued wages | C39: =365*'A2'!B39/'A2'!B$8 -> 9.927861873 | D39: =365*'A2'!C39/'A2'!C$8 -> 10.28402636 | E39: =365*'A2'!D39/'A2'!D$8 -> 9.781045752 | G39: =365*'A2'!F39/'A2'!F$8 -> 10.09000321 | H39: =365*'A2'!G39/'A2'!G$8 -> 9.897928093 | I39: =365*'A2'!H39/'A2'!H$8 -> 9.965146674 | K39: =365*'A2'!J39/'A2'!J$8 -> 9.996593541 | L39: =365*'A2'!K39/'A2'!K$8 -> 10.1190941 | M39: =365*'A2'!L39/'A2'!L$8 -> 9.859952695
B40: Customer prepayments | C40: =365*'A2'!B40/'A2'!B$8 -> 0 | D40: =365*'A2'!C40/'A2'!C$8 -> 0 | E40: =365*'A2'!D40/'A2'!D$8 -> 0 | G40: =365*'A2'!F40/'A2'!F$8 -> 0 | H40: =365*'A2'!G40/'A2'!G$8 -> 0 | I40: =365*'A2'!H40/'A2'!H$8 -> 0 | K40: =365*'A2'!J40/'A2'!J$8 -> 0 | L40: =365*'A2'!K40/'A2'!K$8 -> 0 | M40: =365*'A2'!L40/'A2'!L$8 -> 0
B41: Operating current liabilities | C41: =365*'A2'!B41/'A2'!B$8 -> 38.24385052 | D41: =365*'A2'!C41/'A2'!C$8 -> 40.88729834 | E41: =365*'A2'!D41/'A2'!D$8 -> 39.2037037 | G41: =365*'A2'!F41/'A2'!F$8 -> 41.29861781 | H41: =365*'A2'!G41/'A2'!G$8 -> 38.92443632 | I41: =365*'A2'!H41/'A2'!H$8 -> 39.8605867 | K41: =365*'A2'!J41/'A2'!J$8 -> 39.5387655 | L41: =365*'A2'!K41/'A2'!K$8 -> 40.04880906 | M41: =365*'A2'!L41/'A2'!L$8 -> 39.48524835
A43: % of Total | I43: Debt | K43: ='A2'!J43/'A2'!J$45 -> 0.1300459888 | L43: ='A2'!K43/'A2'!K$45 -> 0.1067264531 | M43: ='A2'!L43/'A2'!L$45 -> 0.1256887912
I44: Equity | K44: ='A2'!J44/'A2'!J$45 -> 0.6668369954 | L44: ='A2'!K44/'A2'!K$45 -> 0.6845068307 | M44: ='A2'!L44/'A2'!L$45 -> 0.6739884794
I45: Liab & Equity | K45: ='A2'!J45/'A2'!J$45 -> 1 | L45: ='A2'!K45/'A2'!K$45 -> 1 | M45: ='A2'!L45/'A2'!L$45 -> 1

Sheet A4
A2: Exhibit 4
A3: Competitor Financials
B5: Glass Containers | F5: Flat Glass
A7: $R millions | B7: AGC Vidros | C7: Companhia de Vidros | D7: Rosina Portis | F7: Boterro Glass | G7: Fanavid | H7: Italajes Glass
A8: Revenue & Revenue Growth | B8: 3576 | C8: 4783 | D8: 2869 | F8: 4867 | G8: 5823 | H8: 8966
A9: Operating costs | B9: -2264 | C9: -3128 | D9: -1922 | F9: -3864 | G9: -4641 | H9: -7119
A10: Depreciation | B10: -114 | C10: -181 | D10: -96 | F10: -136 | G10: -156 | H10: -223
A11: Gross profit | B11: =SUM(B8:B10) -> 1198 | C11: =SUM(C8:C10) -> 1474 | D11: =SUM(D8:D10) -> 851 | F11: =SUM(F8:F10) -> 867 | G11: =SUM(G8:G10) -> 1026 | H11: =SUM(H8:H10) -> 1624
A13: Selling expenses | B13: -730 | C13: -995 | D13: -625 | F13: -633 | G13: -751 | H13: -1103
A14: Operating margin | B14: =SUM(B11:B13) -> 468 | C14: =SUM(C11:C13) -> 479 | D14: =SUM(D11:D13) -> 226 | F14: =SUM(F11:F13) -> 234 | G14: =SUM(G11:G13) -> 275 | H14: =SUM(H11:H13) -> 521
A16: Operating taxes | B16: -140 | C16: -144 | D16: -68 | F16: -70 | G16: -83 | H16: -156
A17: After-tax operating profit | B17: =SUM(B14:B16) -> 328 | C17: =SUM(C14:C16) -> 335 | D17: =SUM(D14:D16) -> 158 | F17: =SUM(F14:F16) -> 164 | G17: =SUM(G14:G16) -> 192 | H17: =SUM(H14:H16) -> 365
A20: Competitor Financials, Glass Containers
A21: Invested capital
A22: $R millions | B22: =B7 -> AGC Vidros | C22: =C7 -> Companhia de Vidros | D22: =D7 -> Rosina Portis | F22: =F7 -> Boterro Glass | G22: =G7 -> Fanavid | H22: =H7 -> Italajes Glass
A23: Working cash | B23: 66 | C23: 89 | D23: 44 | F23: 64 | G23: 88 | H23: 160
A24: Inventory | B24: 476 | C24: 622 | D24: 384 | F24: 589 | G24: 683 | H24: 1024
A25: Accounts receivable | B25: 364 | C25: 449 | D25: 277 | F25: 432 | G25: 533 | H25: 820
A26: Operating current assets | B26: =SUM(B23:B25) -> 906 | C26: =SUM(C23:C25) -> 1160 | D26: =SUM(D23:D25) -> 705 | F26: =SUM(F23:F25) -> 1085 | G26: =SUM(G23:G25) -> 1304 | H26: =SUM(H23:H25) -> 2004
A28: Accounts payable | B28: 264 | C28: 415 | D28: 222 | F28: 407 | G28: 495 | H28: 771
A29: Accrued wages | B29: 83 | C29: 159 | D29: 86 | F29: 147 | G29: 142 | H29: 270
A30: Customer prepayments | B30: 110 | C30: 0 | D30: 114 | F30: 0 | G30: 0 | H30: 0
A31: Operating current liabilities | B31: =SUM(B28:B30) -> 457 | C31: =SUM(C28:C30) -> 574 | D31: =SUM(D28:D30) -> 422 | F31: =SUM(F28:F30) -> 554 | G31: =SUM(G28:G30) -> 637 | H31: =SUM(H28:H30) -> 1041
A33: Working capital | B33: 449 | C33: 586 | D33: 283 | F33: 531 | G33: 667 | H33: 963
A34: Net PP&E | B34: 1173 | C34: 1851 | D34: 967 | F34: 1265 | G34: 1403 | H34: 2026
A35: Invested capital | B35: =SUM(B33:B34) -> 1622 | C35: =SUM(C33:C34) -> 2437 | D35: =SUM(D33:D34) -> 1250 | F35: =SUM(F33:F34) -> 1796 | G35: =SUM(G33:G34) -> 2070 | H35: =SUM(H33:H34) -> 2989
A38: $R millions | B38: =B7 -> AGC Vidros | C38: =C7 -> Companhia de Vidros | D38: =D7 -> Rosina Portis | F38: =F7 -> Boterro Glass | G38: =G7 -> Fanavid | H38: =H7 -> Italajes Glass
A39: Short-term debt | B39: 412 | C39: 196 | D39: 39 | F39: 273 | G39: 214 | H39: 390
A40: Long-term debt | B40: 764 | C40: 735 | D40: 750 | F40: 806 | G40: 966 | H40: 1293
A41: Total debt | B41: =SUM(B39:B40) -> 1176 | C41: =SUM(C39:C40) -> 931 | D41: 789 | F41: 1079 | G41: 1180 | H41: 1683
A43: Equity | B43: 446 | C43: 1506 | D43: 461 | F43: 717 | G43: 890 | H43: 1306
A44: Invested capital | B44: =SUM(B41:B43) -> 1622 | C44: =SUM(C41:C43) -> 2437 | D44: =SUM(D41:D43) -> 1250 | F44: =SUM(F41:F43) -> 1796 | G44: =SUM(G41:G43) -> 2070 | H44: =SUM(H41:H43) -> 2989

Sheet A4b (hidden)
A2: Exhibit 4 | H2: Competitors, Glass Containers
A3: Competitor Financials, Glass Containers
A5: $ millions | B5: AGC Vidros | C5: Companhia de Vidros | D5: Rosina Portis | F5: =B5 -> AGC Vidros | G5: =C5 -> Companhia de Vidros | H5: =D5 -> Rosina Portis
A6: Revenue & Revenue Growth | B6: 3575.924264 | C6: 4783.200364 | D6: 2869.002137 | F6: 0.048 | G6: 0.053 | H6: 0.062 | I6: % of Sales
A7: Operating costs | B7: -2263.560059 | C7: -3128.213038 | D7: -1922.231432 | F7: =-B7/B$6 -> 0.633 | G7: 0.654 | H7: 0.67
A8: Depreciation | B8: -113.8740931 | C8: -181.4802491 | D8: -95.72809112 | F8: 0.03184466019 | G8: 0.03794117647 | H8: 0.03336633663
A9: Gross profit | B9: =SUM(B6:B8) -> 1198.490112 | C9: =SUM(C6:C8) -> 1473.507077 | D9: =SUM(D6:D8) -> 851.0426143 | F9: =B9/B$6 -> 0.3351553398 | G9: =C9/C$6 -> 0.3080588235 | H9: =D9/D$6 -> 0.2966336634
A11: Selling expenses | B11: -729.4885499 | C11: -994.9056756 | D11: -625.442466 | F11: =-B11/B$6 -> 0.204 | G11: =-C11/C$6 -> 0.208 | H11: =-D11/D$6 -> 0.218
A12: Operating margin | B12: =SUM(B9:B11) -> 469.001562 | C12: =SUM(C9:C11) -> 478.6014011 | D12: =SUM(D9:D11) -> 225.6001483 | F12: =B12/B$6 -> 0.1311553398 | G12: =C12/C$6 -> 0.1000588235 | H12: =D12/D$6 -> 0.07863366337
A14: Operating taxes | B14: -140.7004686 | C14: -143.5804203 | D14: -67.68004448 | F14: =-B14/B12 -> 0.3 | G14: =-C14/C12 -> 0.3 | H14: =-D14/D12 -> 0.3
A15: After-tax operating profit | B15: =SUM(B12:B14) -> 328.3010934 | C15: =SUM(C12:C14) -> 335.0209808 | D15: =SUM(D12:D14) -> 157.9201038 | F15: =B15/B$6 -> 0.09180873786 | G15: =C15/C$6 -> 0.07004117647 | H15: =D15/D$6 -> 0.05504356436
A18: Competitor Financials, Glass Containers
A19: Invested capital
A20: $ millions | B20: =B5 -> AGC Vidros | C20: =C5 -> Companhia de Vidros | D20: =D5 -> Rosina Portis | F20: =B20 -> AGC Vidros | G20: =C20 -> Companhia de Vidros | H20: =D20 -> Rosina Portis
A21: Working cash | B21: 65.64025362 | C21: 89.11167801 | D21: 44.01756704 | F21: =365*B21/B$6 -> 6.7 | G21: 6.8 | H21: 5.6 | I21: <------ In Days Sales ------->
A22: Inventory | B22: 476.136765 | C22: 622.4712802 | D22: 384.3676836 | F22: 48.6 | G22: 47.5 | H22: 48.9
A23: Accounts receivable | B23: 364.4503634 | C23: 449.4897876 | D23: 276.68185 | F23: 37.2 | G23: 34.3 | H23: 35.2
A24: Operating current assets | B24: =SUM(B21:B23) -> 906.227382 | C24: =SUM(C21:C23) -> 1161.072746 | D24: =SUM(D21:D23) -> 705.0671006 | F24: 92.5 | G24: 88.6 | H24: 89.7
A26: Accounts payable | B26: 263.5407197 | C26: 415.4176754 | D26: 222.4459192 | F26: =365*B26/B$6 -> 26.9 | G26: 31.7 | H26: 28.3
A27: Accrued wages | B27: 83.27494862 | C27: 158.5663682 | D27: 85.67705013 | F27: 8.5 | G27: 12.1 | H27: 10.9
A28: Customer prepayments | B28: 109.7269911 | C28: 0 | D28: 113.9740575 | F28: 11.2 | G28: 0 | H28: 14.5
A29: Operating current liabilities | B29: =SUM(B26:B28) -> 456.5426595 | C29: =SUM(C26:C28) -> 573.9840436 | D29: =SUM(D26:D28) -> 422.0970268 | F29: 46.6 | G29: 43.8 | H29: 53.7
A31: Working capital | B31: =B24-B29 -> 449.6847225 | C31: =C24-C29 -> 587.0887022 | D31: =D24-D29 -> 282.9700738 | F31: =B31/B$6 -> 0.1257534247 | G31: 0.122739726 | H31: 0.09863013699 | I31: % of Sales
A32: Net PP&E | B32: 1172.903159 | C32: 1851.098541 | D32: 966.8537203 | F32: 0.328 | G32: 0.387 | H32: 0.337
A33: Invested capital | B33: =SUM(B31:B32) -> 1622.587881 | C33: =SUM(C31:C32) -> 2438.187243 | D33: =SUM(D31:D32) -> 1249.823794 | F33: 0.4537534247 | G33: 0.509739726 | H33: 0.435630137
A36: $ millions | B36: =B5 -> AGC Vidros | C36: =C5 -> Companhia de Vidros | D36: =D5 -> Rosina Portis | F36: =B36 -> AGC Vidros | G36: =C36 -> Companhia de Vidros | H36: =D36 -> Rosina Portis
A37: Short-term debt | B37: 411.7316749 | C37: 195.5913806 | D37: 39.43194071 | F37: =B37/B$42 -> 0.25375 | G37: 0.08022 | H37: 0.03155 | I37: <-- % of Capital -->
A38: Long-term debt | B38: 764.644539 | C38: 735.7961462 | D38: 749.2068734 | F38: 0.47125 | G38: 0.30178 | H38: 0.59945
A39: Total debt | B39: 1176.376214 | C39: 931.3875268 | D39: 788.6388141 | F39: 0.725 | G39: 0.382 | H39: 0.631
A41: Equity | B41: =B42-B39 -> 446.2116673 | C41: =C42-C39 -> 1506.799716 | D41: =D42-D39 -> 461.18498 | F41: =B41/B$42 -> 0.275 | G41: 0.618 | H41: 0.369
A42: Invested capital | B42: =B33 -> 1622.587881 | C42: =C33 -> 2438.187243 | D42: =D33 -> 1249.823794 | F42: 1 | G42: 1 | H42: 1

Sheet A4c (hidden)
A2: Exhibit 5 | H2: Competitors, Flat Glass
A3: Competitor Financials, Flat Glass
A5: $ millions | B5: Boterro Glass | C5: Fanavid | D5: Italajes Glass | F5: =B5 -> Boterro Glass | G5: =C5 -> Fanavid | H5: =D5 -> Italajes Glass
A6: Revenue & Revenue Growth | B6: 4866.6805 | C6: 5822.8016 | D6: 8965.572 | F6: -0.002 | G6: 0.022 | H6: -0.022 | I6: % of Sales
A7: Operating costs | B7: -3864.144317 | C7: -4640.772875 | D7: -7118.664168 | F7: =-B7/B$6 -> 0.794 | G7: 0.797 | H7: 0.794
A8: Depreciation | B8: -136.0577344 | C8: -155.9216873 | D8: -222.6614585 | F8: 0.02795698925 | G8: 0.02677777778 | H8: 0.02483516484
A9: Gross profit | B9: =SUM(B6:B8) -> 866.4784486 | C9: =SUM(C6:C8) -> 1026.107038 | D9: =SUM(D6:D8) -> 1624.246374 | F9: =B9/B$6 -> 0.1780430108 | G9: =C9/C$6 -> 0.1762222222 | H9: =D9/D$6 -> 0.1811648352
A11: Selling expenses | B11: -632.668465 | C11: -751.1414064 | D11: -1102.765356 | F11: =-B11/B$6 -> 0.13 | G11: =-C11/C$6 -> 0.129 | H11: =-D11/D$6 -> 0.123
A12: Operating margin | B12: =SUM(B9:B11) -> 233.8099836 | C12: =SUM(C9:C11) -> 274.9656311 | D12: =SUM(D9:D11) -> 521.4810175 | F12: =B12/B$6 -> 0.04804301075 | G12: =C12/C$6 -> 0.04722222222 | H12: =D12/D$6 -> 0.05816483516
A14: Operating taxes | B14: -70.14299508 | C14: -82.48968933 | D14: -156.4443053 | F14: =-B14/B12 -> 0.3 | G14: =-C14/C12 -> 0.3 | H14: =-D14/D12 -> 0.3
A15: After-tax operating profit | B15: =SUM(B12:B14) -> 163.6669885 | C15: =SUM(C12:C14) -> 192.4759418 | D15: =SUM(D12:D14) -> 365.0367123 | F15: =B15/B$6 -> 0.03363010753 | G15: =C15/C$6 -> 0.03305555556 | H15: =D15/D$6 -> 0.04071538462
A18: Competitor Financials, Flat Glass
A19: Invested capital
A20: $ millions | B20: =B5 -> Boterro Glass | C20: =C5 -> Fanavid | D20: =D5 -> Italajes Glass | F20: =B20 -> Boterro Glass | G20: =C20 -> Fanavid | H20: =D20 -> Italajes Glass
A21: Working cash | B21: 64.00018192 | C21: 87.74084603 | D21: 159.6608712 | F21: =365*B21/B$6 -> 4.8 | G21: 5.5 | H21: 6.5 | I21: <------ In Days Sales ------->
A22: Inventory | B22: 589.3350085 | C22: 682.7833109 | D22: 1024.285897 | F22: 44.2 | G22: 42.8 | H22: 41.7
A23: Accounts receivable | B23: 432.0012279 | C23: 532.8262286 | D23: 820.411246 | F23: 32.4 | G23: 33.4 | H23: 33.4
A24: Operating current assets | B24: =SUM(B21:B23) -> 1085.336418 | C24: =SUM(C21:C23) -> 1303.350386 | D24: =SUM(D21:D23) -> 2004.358014 | F24: 81.4 | G24: 81.7 | H24: 81.6
A26: Accounts payable | B26: 406.6678226 | C26: 494.539314 | D26: 771.2848241 | F26: =365*B26/B$6 -> 30.5 | G26: 31 | H26: 31.4
A27: Accrued wages | B27: 146.6670836 | C27: 141.9806418 | D27: 270.1953205 | F27: 11 | G27: 8.9 | H27: 11
A28: Customer prepayments | B28: 0 | C28: 0 | D28: 0 | F28: 0 | G28: 0 | H28: 0
A29: Operating current liabilities | B29: =SUM(B26:B28) -> 553.3349062 | C29: =SUM(C26:C28) -> 636.5199557 | D29: =SUM(D26:D28) -> 1041.480145 | F29: 41.5 | G29: 39.9 | H29: 42.4
A31: Working capital | B31: =B24-B29 -> 532.0015122 | C31: =C24-C29 -> 666.8304298 | D31: =D24-D29 -> 962.8778696 | F31: =B31/B$6 -> 0.1093150685 | G31: 0.1145205479 | H31: 0.1073972603 | I31: % of Sales
A32: Net PP&E | B32: 1265.33693 | C32: 1403.295186 | D32: 2026.219272 | F32: 0.26 | G32: 0.241 | H32: 0.226
A33: Invested capital | B33: =SUM(B31:B32) -> 1797.338442 | C33: =SUM(C31:C32) -> 2070.125615 | D33: =SUM(D31:D32) -> 2989.097142 | F33: 0.3693150685 | G33: 0.3555205479 | H33: 0.3333972603
A36: $ millions | B36: =B5 -> Boterro Glass | C36: =C5 -> Fanavid | D36: =D5 -> Italajes Glass | F36: =B36 -> Boterro Glass | G36: =C36 -> Fanavid | H36: =D36 -> Italajes Glass
A37: Short-term debt | B37: 273.2907022 | C37: 213.5748597 | D37: 390.4239122 | F37: =B37/B$42 -> 0.152053 | G37: 0.10317 | H37: 0.130616 | I37: <-- % of Capital -->
A38: Long-term debt | B38: 806.9097016 | C38: 966.396741 | D38: 1292.437778 | F38: 0.448947 | G38: 0.46683 | H38: 0.432384
A39: Total debt | B39: 1080.200404 | C39: 1179.971601 | D39: 1682.861691 | F39: 0.601 | G39: 0.57 | H39: 0.563
A41: Equity | B41: =B42-B39 -> 717.1380384 | C41: =C42-C39 -> 890.1540146 | D41: =D42-D39 -> 1306.235451 | F41: =B41/B$42 -> 0.399 | G41: 0.43 | H41: 0.437
A42: Invested capital | B42: =B33 -> 1797.338442 | C42: =C33 -> 2070.125615 | D42: =D33 -> 2989.097142 | F42: 1 | G42: 1 | H42: 1

Sheet A5
A2: Exhibit 5
A3: ROIC Tree, Glass Containers
J5: Gross margin1
J6: Dracula | K6: 0.2911089109
J7: AGC | K7: 0.3351553398
A8: Revenue growth | J8: CdeV | K8: 0.3080588235
A9: Dracula | B9: 0.043 | G9: Operating margin1 | J9: Rosina | K9: 0.2966336634
A10: AGC | B10: 0.048 | G10: Dracula | H10: 0.09710891089 | J10: -
A11: CdeV | B11: 0.053 | G11: AGC | H11: 0.1311553398 | J11: Selling & General expenses1
A12: Rosina | B12: 0.062 | G12: CdeV | H12: 0.1000588235 | J12: Dracula | K12: 0.194
G13: Rosina | H13: 0.07863366337 | J13: AGC | K13: 0.204 | M13: Working Capital | O13: Glass Containers
D14: Pre-tax ROIC | J14: CdeV | K14: 0.208
D15: Dracula | E15: 0.2039633587 | J15: Rosina | K15: 0.218 | M15: in Days of Sales | N15: =A19 -> Dracula | O15: =A20 -> AGC | P15: =A21 -> CdeV | Q15: =A22 -> Rosina
D16: AGC | E16: 0.2890453993 | G16: X | M16: Working cash | N16: 5.9 | O16: 6.7 | P16: 6.8 | Q16: 5.6
D17: CdeV | E17: 0.1962939485 | J17: Working capital1 | M17: Inventory | N17: 58 | O17: 48.6 | P17: 47.5 | Q17: 48.9
A18: ROIC | D18: Rosina | E18: 0.1805055635 | J18: Dracula | K18: 0.164109589 | M18: Accounts receivable | N18: 35.2 | O18: 37.2 | P18: 34.3 | Q18: 35.2
A19: Dracula | B19: 0.1427743511 | G19: Capital turnover (x) | J19: AGC | K19: 0.1257534247 | M19: Operating current assets | N19: =SUM(N16:N18) -> 99.1 | O19: =SUM(O16:O18) -> 92.5 | P19: =SUM(P16:P18) -> 88.6 | Q19: =SUM(Q16:Q18) -> 89.7
A20: AGC | B20: 0.2023317795 | G20: Dracula | H20: 2.100356773 | J20: CdeV | K20: 0.122739726
A21: CdeV | B21: 0.137405764 | D21: X | G21: AGC | H21: 2.203840116 | J21: Rosina | K21: 0.09863013699 | M21: Accounts payable | N21: -28.3 | O21: -26.9 | P21: -31.7 | Q21: -28.3
A22: Rosina | B22: 0.1263538945 | G22: CdeV | H22: 1.961785494 | J22: + | M22: Accrued wages | N22: -9.9 | O22: -8.5 | P22: -12.1 | Q22: -10.9
D23: 1- | G23: Rosina | H23: 2.295525298 | J23: PP&E1 | M23: Customer prepayments | N23: 0 | O23: -11.2 | P23: 0 | Q23: -14.5
D24: Operating tax rate | J24: Dracula | K24: 0.312 | M24: Working capital | N24: =SUM(N19:N23) -> 60.9 | O24: =SUM(O19:O23) -> 45.9 | P24: =SUM(P19:P23) -> 44.8 | Q24: =SUM(Q19:Q23) -> 36
D25: Dracula | E25: 0.3 | J25: AGC | K25: 0.328
D26: AGC | E26: 0.3 | J26: CdeV | K26: 0.387 | M26: Divided by 365: | N26: =N24/365 -> 0.1668493151 | O26: =O24/365 -> 0.1257534247 | P26: =P24/365 -> 0.122739726 | Q26: =Q24/365 -> 0.09863013699
D27: CdeV | E27: 0.3 | J27: Rosina | K27: 0.337
D28: Rosina | E28: 0.3
A31: 1 Percent of sales

Sheet A6
A2: Exhibit 6
A3: ROIC Tree, Flat Glass
J5: Gross margin1
J6: Dracula | K6: 0.1827362637
J7: Boterro | K7: 0.1780430108
A8: Revenue growth | J8: Fanavid | K8: 0.1762222222
A9: Dracula | B9: 0.049 | G9: Operating margin1 | J9: Italajes | K9: 0.1811648352
A10: Boterro | B10: -0.002 | G10: Dracula | H10: 0.04373626374 | J10: -
A11: Fanavid | B11: 0.022 | G11: Boterro | H11: 0.04804301075 | J11: Selling & General expenses1
A12: Italajes | B12: -0.022 | G12: Fanavid | H12: 0.04722222222 | J12: Dracula | K12: 0.139
G13: Italajes | H13: 0.05816483516 | J13: Boterro | K13: 0.13 | M13: Working Capital | O13: Flat Glass
D14: Pre-tax ROIC | J14: Fanavid | K14: 0.129
D15: Dracula | E15: 0.1173502133 | J15: Italajes | K15: 0.123 | M15: in Days of Sales | N15: =A19 -> Dracula | O15: =A20 -> Boterro | P15: =A21 -> Fanavid | Q15: =A22 -> Italajes
D16: Boterro | E16: 0.1300867873 | G16: X | M16: Working cash | N16: 5.1 | O16: 4.8 | P16: 5.5 | Q16: 6.5
D17: Fanavid | E17: 0.1328255779 | J17: Working capital1 | M17: Inventory | N17: 42.7 | O17: 44.2 | P17: 42.8 | Q17: 41.7
A18: ROIC | D18: Italajes | E18: 0.1744610472 | J18: Dracula | K18: 0.1336986301 | M18: Accounts receivable | N18: 40.9 | O18: 32.4 | P18: 33.4 | Q18: 33.4
A19: Dracula | B19: 0.0821451493 | G19: Capital turnover (x) | J19: Boterro | K19: 0.1093150685 | M19: Operating current assets | N19: =SUM(N16:N18) -> 88.7 | O19: =SUM(O16:O18) -> 81.4 | P19: =SUM(P16:P18) -> 81.7 | Q19: =SUM(Q16:Q18) -> 81.6
A20: Boterro | B20: 0.09106075109 | G20: Dracula | H20: 2.683133017 | J20: Fanavid | K20: 0.1145205479
A21: Fanavid | B21: 0.0929779045 | D21: X | G21: Boterro | H21: 2.707715134 | J21: Italajes | K21: 0.1073972603 | M21: Accounts payable | N21: -29.9 | O21: -30.5 | P21: -31 | Q21: -31.4
A22: Italajes | B22: 0.122122733 | G22: Fanavid | H22: 2.812776943 | J22: + | M22: Accrued wages | N22: -10 | O22: -11 | P22: -8.9 | Q22: -11
D23: 1- | G23: Italajes | H23: 2.999424768 | J23: PP&E1 | M23: Customer prepayments | N23: 0 | O23: 0 | P23: 0 | Q23: 0
D24: Operating tax rate | J24: Dracula | K24: 0.239 | M24: Working capital | N24: =SUM(N19:N23) -> 48.8 | O24: =SUM(O19:O23) -> 39.9 | P24: =SUM(P19:P23) -> 41.8 | Q24: =SUM(Q19:Q23) -> 39.2
D25: Dracula | E25: 0.3 | J25: Boterro | K25: 0.26
D26: Boterro | E26: 0.3 | J26: Fanavid | K26: 0.241 | M26: Divided by 365: | N26: =N24/365 -> 0.1336986301 | O26: =O24/365 -> 0.1093150685 | P26: =P24/365 -> 0.1145205479 | Q26: =Q24/365 -> 0.1073972603
D27: Fanavid | E27: 0.3 | J27: Italajes | K27: 0.226
D28: Italajes | E28: 0.3
A31: 1 Percent of sales

Sheet A7
A2: Exhibit 7 | L2: =A3 -> Glass Containers, Financial Forecasts
A3: Glass Containers, Financial Forecasts
A5: Dracula Glass, Glass Containers
A6: After-tax Operating Profit | C6: <------------ Forecast -----------> | I6: <------------ Forecast ----------->
A8: $R millions | B8: ='A2'!D7 -> 2018 | C8: =B8+1 -> 2019 | D8: =C8+1 -> 2020 | E8: =D8+1 -> 2021 | F8: =E8+1 -> 2022 | H8: =B8 -> 2018 | I8: =C8 -> 2019 | J8: =D8 -> 2020 | K8: =E8 -> 2021 | L8: =F8 -> 2022
A9: Revenues1 | B9: ='A2'!D8 -> 4590 | C9: =Revenue!L35 -> 4852.263717 | D9: =Revenue!M35 -> 5130.11255 | E9: =Revenue!N35 -> 5424.943714 | F9: =Revenue!O35 -> 5737.902693 | H9: ='A2'!D8/'A2'!C8-1 -> 0.04294478528 | I9: 0.05706462482 | J9: 0.05726133537 | K9: 0.05747035405 | L9: 0.05768855328
A10: Raw materials | B10: ='A2'!D9 -> -1850 | C10: =-I10*C$9 -> -1955.70542 | D10: -2067.692422 | E10: -2186.524155 | F10: -2312.662305 | H10: =-B10/B$9 -> 0.4030501089 | I10: =H10 -> 0.4030501089 | J10: 0.4030501089 | K10: 0.4030501089 | L10: 0.4030501089
A11: Forging expenses | B11: ='A2'!D10 -> -1262 | C11: -1334.108238 | D11: -1410.501533 | E11: -1491.564045 | F11: -1577.610719 | H11: =-B11/B$9 -> 0.2749455338 | I11: 0.2749455338 | J11: 0.2749455338 | K11: 0.2749455338 | L11: 0.2749455338
A12: Depreciation | B12: ='A2'!D11 -> -142 | C12: -150.1136052 | D12: -158.7093643 | E12: -167.8305027 | F12: -177.512458 | H12: =-B12/B$9 -> 0.03093681917 | I12: 0.03093681917 | J12: 0.03093681917 | K12: 0.03093681917 | L12: 0.03093681917
A13: Gross profit | B13: =SUM(B9:B12) -> 1336 | C13: =SUM(C9:C12) -> 1412.336454 | D13: =SUM(D9:D12) -> 1493.20923 | E13: =SUM(E9:E12) -> 1579.025011 | F13: =SUM(F9:F12) -> 1670.117211 | H13: =B13/B$9 -> 0.2910675381 | I13: =C13/C$9 -> 0.2910675381 | J13: =D13/D$9 -> 0.2910675381 | K13: =E13/E$9 -> 0.2910675381 | L13: =F13/F$9 -> 0.2910675381
A15: Selling and support costs | B15: ='A2'!D14 -> -890 | C15: =-I15*C$9 -> -940.8528776 | D15: =-J15*D$9 -> -994.7277057 | E15: =-K15*E$9 -> -1051.895404 | F15: =-L15*F$9 -> -1112.578082 | H15: =-B15/B$9 -> 0.1938997821 | I15: =H15 -> 0.1938997821 | J15: =I15 -> 0.1938997821 | K15: =J15 -> 0.1938997821 | L15: =K15 -> 0.1938997821
A16: Operating profit | B16: =SUM(B13:B15) -> 446 | C16: =SUM(C13:C15) -> 471.4835769 | D16: =SUM(D13:D15) -> 498.4815244 | E16: =SUM(E13:E15) -> 527.1296071 | F16: =SUM(F13:F15) -> 557.5391288 | H16: =B16/B$9 -> 0.09716775599 | I16: =C16/C$9 -> 0.09716775599 | J16: =D16/D$9 -> 0.09716775599 | K16: =E16/E$9 -> 0.09716775599 | L16: =F16/F$9 -> 0.09716775599
A18: Operating taxes | B18: -133.730723 | C18: =-I18*C$16 -> -141.3718377 | D18: =-J18*D$16 -> -149.4670284 | E18: =-K18*E$16 -> -158.0570033 | F18: =-L18*F$16 -> -167.1751363 | H18: =-B18/B16 -> 0.2998446704 | I18: =H18 -> 0.2998446704 | J18: =I18 -> 0.2998446704 | K18: =J18 -> 0.2998446704 | L18: =K18 -> 0.2998446704
A19: After-tax operating profit | B19: =SUM(B16:B18) -> 312.269277 | C19: =SUM(C16:C18) -> 330.1117392 | D19: =SUM(D16:D18) -> 349.014496 | E19: =SUM(E16:E18) -> 369.0726038 | F19: =SUM(F16:F18) -> 390.3639925 | H19: =B19/B$9 -> 0.06803252222 | I19: =C19/C$9 -> 0.06803252222 | J19: =D19/D$9 -> 0.06803252222 | K19: =E19/E$9 -> 0.06803252222 | L19: =F19/F$9 -> 0.06803252222
A22: Dracula Glass, Glass Containers
A23: Invested Capital2
A25: $R millions | B25: =B8 -> 2018 | C25: =C8 -> 2019 | D25: =D8 -> 2020 | E25: =E8 -> 2021 | F25: =F8 -> 2022 | H25: =B25 -> 2018 | I25: =C25 -> 2019 | J25: =D25 -> 2020 | K25: =E25 -> 2021 | L25: =F25 -> 2022
A26: Operating current assets | B26: ='A2'!D31 -> 1246 | C26: =I26*C$9/365 -> 1317.194029 | D26: =J26*D$9/365 -> 1392.618788 | E26: =K26*E$9/365 -> 1472.653566 | F26: =L26*F$9/365 -> 1557.609315 | H26: =B26/B$9*365 -> 99.08278867 | I26: =H26 -> 99.08278867 | J26: 99.08278867 | K26: 99.08278867 | L26: 99.08278867
A27: Operating current liabilities | B27: =-'A2'!D41 -> -493 | C27: =-I27*C$9/365 -> -521.1690659 | D27: =-J27*D$9/365 -> -551.0120887 | E27: =-K27*E$9/365 -> -582.6791397 | F27: =-L27*F$9/365 -> -616.2932522 | H27: =-B27/B$9*365 -> 39.2037037 | I27: 39.2037037 | J27: 39.2037037 | K27: 39.2037037 | L27: 39.2037037
A28: Operating working capital | B28: =SUM(B26:B27) -> 753 | C28: =SUM(C26:C27) -> 796.0249627 | D28: =SUM(D26:D27) -> 841.6066993 | E28: =SUM(E26:E27) -> 889.9744263 | F28: =SUM(F26:F27) -> 941.3160627 | H28: =B28/B$9*365 -> 59.87908497 | I28: =C28/C$9*365 -> 59.87908497 | J28: =D28/D$9*365 -> 59.87908497 | K28: =E28/E$9*365 -> 59.87908497 | L28: =F28/F$9*365 -> 59.87908497
A30: Property, plant & equipment, net | B30: ='A2'!D33 -> 1432 | C30: =I30*C$9 -> 1513.821709 | D30: =J30*D$9 -> 1600.505702 | E30: =K30*E$9 -> 1692.487886 | F30: =L30*F$9 -> 1790.125633 | H30: =B30/B9 -> 0.3119825708 | I30: =H30 -> 0.3119825708 | J30: =I30 -> 0.3119825708 | K30: =J30 -> 0.3119825708 | L30: =K30 -> 0.3119825708
A31: Invested capital | B31: =SUM(B28:B30) -> 2185 | C31: =SUM(C28:C30) -> 2309.846671 | D31: =SUM(D28:D30) -> 2442.112401 | E31: =SUM(E28:E30) -> 2582.462313 | F31: =SUM(F28:F30) -> 2731.441696 | H31: =B31/B9 -> 0.4760348584 | I31: =C31/C9 -> 0.4760348584 | J31: =D31/D9 -> 0.4760348584 | K31: =E31/E9 -> 0.4760348584 | L31: =F31/F9 -> 0.4760348584
A33: 1 Revenue forecast based on analyst forecasts, not on "as-is" growth
A34: 2 Forecasts of working capital are in days sales and forecasts of PP&E are in percentage of sales

Sheet A8
A2: Exhibit 8 | L2: =A3 -> Flat Glass, Financial Forecasts
A3: Flat Glass, Financial Forecasts
A5: Dracula Glass, Flat Glass
A6: After-tax Operating Profit | C6: <------------ Forecast -----------> | I6: <------------ Forecast ----------->
A8: $R millions | B8: ='A2'!H7 -> 2018 | C8: =B8+1 -> 2019 | D8: =C8+1 -> 2020 | E8: =D8+1 -> 2021 | F8: =E8+1 -> 2022 | H8: =B8 -> 2018 | I8: =C8 -> 2019 | J8: =D8 -> 2020 | K8: =E8 -> 2021 | L8: =F8 -> 2022
A9: Revenues1 | B9: ='A2'!H8 -> 3443 | C9: =B9*(1+I9) -> 3597.935 | D9: =C9*(1+J9) -> 3741.8524 | E9: =D9*(1+K9) -> 3872.817234 | F9: =E9*(1+L9) -> 4008.365837 | H9: ='A3'!I8 -> 0.04905545399 | I9: 0.045 | J9: 0.04 | K9: 0.035 | L9: 0.035
A10: Raw materials | B10: ='A2'!H9 -> -2073 | C10: =-I10*C$9 -> -2166.285 | D10: -2252.9364 | E10: -2331.789174 | F10: -2413.401795 | H10: =-B10/B$9 -> 0.6020911995 | I10: =H10 -> 0.6020911995 | J10: 0.6020911995 | K10: 0.6020911995 | L10: 0.6020911995
A11: Forging expenses | B11: ='A2'!H10 -> -651 | C11: -680.295 | D11: -707.5068 | E11: -732.269538 | F11: -757.8989718 | H11: =-B11/B$9 -> 0.1890792913 | I11: 0.1890792913 | J11: 0.1890792913 | K11: 0.1890792913 | L11: 0.1890792913
A12: Depreciation | B12: ='A2'!H11 -> -90 | C12: -94.05 | D12: -97.812 | E12: -101.23542 | F12: -104.7786597 | H12: =-B12/B$9 -> 0.02613999419 | I12: 0.02613999419 | J12: 0.02613999419 | K12: 0.02613999419 | L12: 0.02613999419
A13: Gross profit | B13: =SUM(B9:B12) -> 629 | C13: =SUM(C9:C12) -> 657.305 | D13: =SUM(D9:D12) -> 683.5972 | E13: =SUM(E9:E12) -> 707.523102 | F13: =SUM(F9:F12) -> 732.2864106 | H13: =B13/B$9 -> 0.182689515 | I13: =C13/C$9 -> 0.182689515 | J13: =D13/D$9 -> 0.182689515 | K13: =E13/E$9 -> 0.182689515 | L13: =F13/F$9 -> 0.182689515
A15: Selling and support costs | B15: ='A2'!H14 -> -479 | C15: =-I15*C$9 -> -500.555 | D15: =-J15*D$9 -> -520.5772 | E15: =-K15*E$9 -> -538.797402 | F15: =-L15*F$9 -> -557.6553111 | H15: =-B15/B$9 -> 0.139122858 | I15: =H15 -> 0.139122858 | J15: =I15 -> 0.139122858 | K15: =J15 -> 0.139122858 | L15: =K15 -> 0.139122858
A16: Operating profit | B16: =SUM(B13:B15) -> 150 | C16: =SUM(C13:C15) -> 156.75 | D16: =SUM(D13:D15) -> 163.02 | E16: =SUM(E13:E15) -> 168.7257 | F16: =SUM(F13:F15) -> 174.6310995 | H16: =B16/B$9 -> 0.04356665699 | I16: =C16/C$9 -> 0.04356665699 | J16: =D16/D$9 -> 0.04356665699 | K16: =E16/E$9 -> 0.04356665699 | L16: =F16/F$9 -> 0.04356665699
A18: Operating taxes | B18: -45.17518681 | C18: =-I18*C$16 -> -47.20807022 | D18: =-J18*D$16 -> -49.09639303 | E18: =-K18*E$16 -> -50.81476678 | F18: =-L18*F$16 -> -52.59328362 | H18: =-B18/B16 -> 0.3011679121 | I18: =H18 -> 0.3011679121 | J18: =I18 -> 0.3011679121 | K18: =J18 -> 0.3011679121 | L18: =K18 -> 0.3011679121
A19: After-tax operating profit | B19: =SUM(B16:B18) -> 104.8248132 | C19: =SUM(C16:C18) -> 109.5419298 | D19: =SUM(D16:D18) -> 113.923607 | E19: =SUM(E16:E18) -> 117.9109332 | F19: =SUM(F16:F18) -> 122.0378159 | H19: =B19/B$9 -> 0.03044577786 | I19: =C19/C$9 -> 0.03044577786 | J19: =D19/D$9 -> 0.03044577786 | K19: =E19/E$9 -> 0.03044577786 | L19: =F19/F$9 -> 0.03044577786
A22: Dracula Glass, Flat Glass
A23: Invested Capital2
A25: $R millions | B25: =B8 -> 2018 | C25: =C8 -> 2019 | D25: =D8 -> 2020 | E25: =E8 -> 2021 | F25: =F8 -> 2022 | H25: =B25 -> 2018 | I25: =C25 -> 2019 | J25: =D25 -> 2020 | K25: =E25 -> 2021 | L25: =F25 -> 2022
A26: Operating current assets | B26: ='A2'!H31 -> 837 | C26: =I26*C$9/365 -> 874.665 | D26: =J26*D$9/365 -> 909.6516 | E26: =K26*E$9/365 -> 941.489406 | F26: =L26*F$9/365 -> 974.4415352 | H26: =B26/B$9*365 -> 88.73221028 | I26: =H26 -> 88.73221028 | J26: 88.73221028 | K26: 88.73221028 | L26: 88.73221028
A27: Operating current liabilities | B27: =-'A2'!H41 -> -376 | C27: =-I27*C$9/365 -> -392.92 | D27: =-J27*D$9/365 -> -408.6368 | E27: =-K27*E$9/365 -> -422.939088 | F27: =-L27*F$9/365 -> -437.7419561 | H27: =-B27/B$9*365 -> 39.8605867 | I27: 39.8605867 | J27: 39.8605867 | K27: 39.8605867 | L27: 39.8605867
A28: Operating working capital | B28: =SUM(B26:B27) -> 461 | C28: =SUM(C26:C27) -> 481.745 | D28: =SUM(D26:D27) -> 501.0148 | E28: =SUM(E26:E27) -> 518.550318 | F28: =SUM(F26:F27) -> 536.6995791 | H28: =B28/B$9*365 -> 48.87162358 | I28: =C28/C$9*365 -> 48.87162358 | J28: =D28/D$9*365 -> 48.87162358 | K28: =E28/E$9*365 -> 48.87162358 | L28: =F28/F$9*365 -> 48.87162358
A30: Property, plant & equipment, net | B30: ='A2'!H33 -> 823 | C30: =I30*C$9 -> 860.035 | D30: =J30*D$9 -> 894.4364 | E30: =K30*E$9 -> 925.741674 | F30: =L30*F$9 -> 958.1426326 | H30: =B30/B9 -> 0.2390357247 | I30: =H30 -> 0.2390357247 | J30: =I30 -> 0.2390357247 | K30: =J30 -> 0.2390357247 | L30: =K30 -> 0.2390357247
A31: Invested capital | B31: =SUM(B28:B30) -> 1284 | C31: =SUM(C28:C30) -> 1341.78 | D31: =SUM(D28:D30) -> 1395.4512 | E31: =SUM(E28:E30) -> 1444.291992 | F31: =SUM(F28:F30) -> 1494.842212 | H31: =B31/B9 -> 0.3729305838 | I31: =C31/C9 -> 0.3729305838 | J31: =D31/D9 -> 0.3729305838 | K31: =E31/E9 -> 0.3729305838 | L31: =F31/F9 -> 0.3729305838
A33: 1 Revenue forecast based on analyst forecasts, not on "as-is" growth
A34: 2 Forecasts of working capital are in days sales and forecasts of PP&E are in percentage of sales

Sheet A9
A2: Exhibit 9 | G2: Revenue Model
A3: Brazilian Glass Container Market
A6: Table 1 | E6: Table 3
A7: Unit Forecast for Brazilian Market, All Competitors | E7: Price Forecast
C8: =B10+1 & "-" & B10+4 -> 2019-2022 | G8: =F10+1 & "-" & F10+4 -> 2019-2022
C9: Annual | G9: Annual
A10: Millions of bottles | B10: ='A2'!L7 -> 2018 | C10: Growth | E10: $R | F10: =B10 -> 2018 | G10: Growth
A11: =market1 -> Beer | B11: 12886 | C11: 0.03 | E11: =market1 -> Beer | F11: 0.6 | G11: 0.03
A12: =market3 -> Wines and spirits | B12: 6569 | C12: -0.025 | E12: =market3 -> Wines and spirits | F12: 0.65 | G12: 0
A13: =market2 -> Soft drinks | B13: 3392 | C13: 0.01 | E13: =market2 -> Soft drinks | F13: 1.6 | G13: 0.035
A14: =market4 -> Consumer products | B14: 3439 | C14: 0.045 | E14: =market4 -> Consumer products | F14: 0.9 | G14: 0.025
A15: Total units, Brazil | B15: =SUM(B11:B14) -> 26286 | E15: Average price, Dracula Glass | F15: =Revenue!K24 -> 0.6826020628
A18: Table 2
A19: Dracula Glass, Market Share | C19: =B21+1 & "-" & B21+4 -> 2019-2022
C20: Cumulative
A21: percent | B21: =B10 -> 2018 | C21: Improvement1
A22: =market1 -> Beer | B22: 0.384 | C22: 0.005
A23: =market3 -> Wines and spirits | B23: 0.154 | C23: 0.02
A24: =market2 -> Soft drinks | B24: 0.116 | C24: 0.01
A25: =market4 -> Consumer products | B25: 0.108 | C25: 0
A26: Average share, Dracula Glass | B26: =Revenue!B24 -> 0.255829491
A28: 1 Increase in market share management expects to gain over the next four years.

Sheet Revenue (hidden)
A2: Glass Containers
A3: Revenue Model
A5: Brazilian Market | J5: Dracula Glass
A6: Projected Units | J6: Projected Units
H7: CAGR | Q7: CAGR
A8: Millions of bottles | B8: ='A2'!$L$7 -> 2018 | C8: =($B8+1) & "F" -> 2019F | D8: =($B8+2) & "F" -> 2020F | E8: =($B8+3) & "F" -> 2021F | F8: =($B8+4) & "F" -> 2022F | H8: Forecast | J8: Millions of bottles | K8: ='A2'!$L$7 -> 2018 | L8: =($B8+1) & "F" -> 2019F | M8: =($B8+2) & "F" -> 2020F | N8: =($B8+3) & "F" -> 2021F | O8: =($B8+4) & "F" -> 2022F | Q8: Forecast
A9: Beer | B9: ='A9'!B11 -> 12886 | C9: =B9*(1+$H9) -> 13272.58 | D9: 13670.7574 | E9: 14080.88012 | F9: 14503.30653 | H9: ='A9'!C11 -> 0.03 | J9: =market1 -> Beer | K9: =B31 -> 4948.224 | L9: 5113.261445 | M9: 5283.747735 | N9: 5459.861267 | O9: 5641.786238 | Q9: =RATE(COLUMN(O9) - COLUMN(K9), 0, -K9, O9) -> 0.03333661642
A10: Soft drinks | B10: ='A9'!B12 -> 6569 | C10: 6404.775 | D10: 6244.655625 | E10: 6088.539234 | F10: 5936.325754 | H10: ='A9'!C12 -> -0.025 | J10: =market3 -> Wines and spirits | K10: 1011.626 | L10: 1018.359225 | M10: 1024.123523 | N10: 1028.963131 | O10: 1032.920681 | Q10: =RATE(COLUMN(O10) - COLUMN(K10), 0, -K10, O10) -> 0.005221450725
A11: Wines and spirits | B11: ='A9'!B13 -> 3392 | C11: 3425.92 | D11: 3460.1792 | E11: 3494.780992 | F11: 3529.728802 | H11: ='A9'!C13 -> 0.01 | J11: =market2 -> Soft drinks | K11: 393.472 | L11: 405.97152 | M11: 418.6816832 | N11: 431.6054525 | O11: 444.745829 | Q11: =RATE(COLUMN(O11) - COLUMN(K11), 0, -K11, O11) -> 0.03109697504
A12: Consumer products | B12: ='A9'!B14 -> 3439 | C12: 3593.755 | D12: 3755.473975 | E12: 3924.470304 | F12: 4101.071468 | H12: ='A9'!C14 -> 0.045 | J12: =market4 -> Consumer products | K12: 371.412 | L12: 388.12554 | M12: 405.5911893 | N12: 423.8427928 | O12: 442.9157185 | Q12: =RATE(COLUMN(O12) - COLUMN(K12), 0, -K12, O12) -> 0.045
A13: Total units, Brazil | B13: =SUM(B9:B12) -> 26286 | C13: =SUM(C9:C12) -> 26697.03 | D13: =SUM(D9:D12) -> 27131.0662 | E13: =SUM(E9:E12) -> 27588.67065 | F13: =SUM(F9:F12) -> 28070.43255 | H13: =RATE(COLUMN(F13) - COLUMN(B13), 0, -B13, F13) -> 0.01655563088 | J13: Total units, Dracula | K13: =SUM(K9:K12) -> 6724.734 | L13: =SUM(L9:L12) -> 6925.71773 | M13: =SUM(M9:M12) -> 7132.14413 | N13: =SUM(N9:N12) -> 7344.272643 | O13: =SUM(O9:O12) -> 7562.368467 | Q13: =RATE(COLUMN(O13) - COLUMN(K13), 0, -K13, O13) -> 0.02978291193
A16: Dracula Glass | J16: Dracula Glass
A17: Projected Market Share | H17: 4-Year | J17: Expected Pricing
H18: Expected | Q18: CAGR
A19: Millions of bottles | B19: ='A2'!$L$7 -> 2018 | C19: =($B19+1) & "F" -> 2019F | D19: =($B19+2) & "F" -> 2020F | E19: =($B19+3) & "F" -> 2021F | F19: =($B19+4) & "F" -> 2022F | H19: Change | J19: Average price, $R | K19: ='A2'!$L$7 -> 2018 | L19: =($K19+1) & "F" -> 2019F | M19: =($K19+2) & "F" -> 2020F | N19: =($K19+3) & "F" -> 2021F | O19: =($K19+4) & "F" -> 2022F | Q19: Forecast
A20: =market1 -> Beer | B20: ='A9'!B22 -> 0.384 | C20: =B20+$H20/4 -> 0.38525 | D20: 0.3865 | E20: 0.38775 | F20: 0.389 | H20: ='A9'!C22 -> 0.005 | J20: =market1 -> Beer | K20: ='A9'!F11 -> 0.6 | L20: =K20*(1+$Q20) -> 0.618 | M20: 0.63654 | N20: 0.6556362 | O20: 0.675305286 | Q20: ='A9'!G11 -> 0.03
A21: =market3 -> Wines and spirits | B21: ='A9'!B23 -> 0.154 | C21: 0.159 | D21: 0.164 | E21: 0.169 | F21: 0.174 | H21: ='A9'!C23 -> 0.02 | J21: =market3 -> Wines and spirits | K21: ='A9'!F12 -> 0.65 | L21: 0.65 | M21: 0.65 | N21: 0.65 | O21: 0.65 | Q21: ='A9'!G12 -> 0
A22: =market2 -> Soft drinks | B22: ='A9'!B24 -> 0.116 | C22: 0.1185 | D22: 0.121 | E22: 0.1235 | F22: 0.126 | H22: ='A9'!C24 -> 0.01 | J22: =market2 -> Soft drinks | K22: ='A9'!F13 -> 1.6 | L22: 1.656 | M22: 1.71396 | N22: 1.7739486 | O22: 1.836036801 | Q22: ='A9'!G13 -> 0.035
A23: =market4 -> Consumer products | B23: ='A9'!B25 -> 0.108 | C23: 0.108 | D23: 0.108 | E23: 0.108 | F23: 0.108 | H23: ='A9'!C25 -> 0 | J23: =market4 -> Consumer products | K23: ='A9'!F14 -> 0.9 | L23: 0.9225 | M23: 0.9455625 | N23: 0.9692015625 | O23: 0.9934316016 | Q23: ='A9'!G14 -> 0.025
A24: Total share, Dracula | B24: =B35/B13 -> 0.255829491 | C24: =C35/C13 -> 0.2594190339 | D24: =D35/D13 -> 0.2628773996 | E24: =E35/E13 -> 0.2662061081 | F24: =F35/F13 -> 0.269406909 | H24: =F24-B24 -> 0.01357741801 | J24: Average price, Dracula | K24: =K35/B35 -> 0.6826020628 | L24: =L35/C35 -> 0.7006152873 | M24: =M35/D35 -> 0.7192945706 | N24: =N35/E35 -> 0.7386631703 | O24: =O35/F35 -> 0.7587441313 | Q24: =RATE(COLUMN(O24) - COLUMN(K24), 0, -K24, O24) -> 0.02679072525
A27: Dracula Glass | J27: Dracula Glass
A28: Projected Units | J28: Revenue, Packaging
H29: CAGR | Q29: CAGR
A30: Millions of bottles | B30: ='A2'!$L$7 -> 2018 | C30: =($B30+1) & "F" -> 2019F | D30: =($B30+2) & "F" -> 2020F | E30: =($B30+3) & "F" -> 2021F | F30: =($B30+4) & "F" -> 2022F | H30: Forecast | J30: Real, millions | K30: ='A2'!$L$7 -> 2018 | L30: =($K30+1) & "F" -> 2019F | M30: =($K30+2) & "F" -> 2020F | N30: =($K30+3) & "F" -> 2021F | O30: =($K30+4) & "F" -> 2022F | Q30: Forecast
A31: =market1 -> Beer | B31: =B9*B20 -> 4948.224 | C31: 5113.261445 | D31: 5283.747735 | E31: 5459.861267 | F31: 5641.786238 | H31: =RATE(COLUMN(F31) - COLUMN(B31), 0, -B31, F31) -> 0.03333661642 | J31: =market1 -> Beer | K31: =B31*K20 -> 2968.9344 | L31: 3159.995573 | M31: 3363.316783 | N31: 3579.682694 | O31: 3809.928069 | Q31: =RATE(COLUMN(O31) - COLUMN(K31), 0, -K31, O31) -> 0.06433671491
A32: =market3 -> Wines and spirits | B32: 1011.626 | C32: 1018.359225 | D32: 1024.123523 | E32: 1028.963131 | F32: 1032.920681 | H32: =RATE(COLUMN(F32) - COLUMN(B32), 0, -B32, F32) -> 0.005221450725 | J32: =market3 -> Wines and spirits | K32: 657.5569 | L32: 661.9334962 | M32: 665.6802896 | N32: 668.8260349 | O32: 671.3984427 | Q32: =RATE(COLUMN(O32) - COLUMN(K32), 0, -K32, O32) -> 0.005221450725
A33: =market2 -> Soft drinks | B33: 393.472 | C33: 405.97152 | D33: 418.6816832 | E33: 431.6054525 | F33: 444.745829 | H33: =RATE(COLUMN(F33) - COLUMN(B33), 0, -B33, F33) -> 0.03109697504 | J33: =market2 -> Soft drinks | K33: 629.5552 | L33: 672.2888371 | M33: 717.6036577 | N33: 765.6458882 | O33: 816.5697092 | Q33: =RATE(COLUMN(O33) - COLUMN(K33), 0, -K33, O33) -> 0.06718536916
A34: =market4 -> Consumer products | B34: 371.412 | C34: 388.12554 | D34: 405.5911893 | E34: 423.8427928 | F34: 442.9157185 | H34: =RATE(COLUMN(F34) - COLUMN(B34), 0, -B34, F34) -> 0.045 | J34: =market4 -> Consumer products | K34: 334.2708 | L34: 358.0458106 | M34: 383.5118189 | N34: 410.7890971 | O34: 440.0064716 | Q34: =RATE(COLUMN(O34) - COLUMN(K34), 0, -K34, O34) -> 0.07112500001
A35: Total units, Dracula | B35: =SUM(B31:B34) -> 6724.734 | C35: =SUM(C31:C34) -> 6925.71773 | D35: =SUM(D31:D34) -> 7132.14413 | E35: =SUM(E31:E34) -> 7344.272643 | F35: =SUM(F31:F34) -> 7562.368467 | H35: =RATE(COLUMN(F35) - COLUMN(B35), 0, -B35, F35) -> 0.02978291193 | J35: Total revenue, Dracula | K35: =SUM(K31:K34) -> 4590.3173 | L35: =SUM(L31:L34) -> 4852.263717 | M35: =SUM(M31:M34) -> 5130.11255 | N35: =SUM(N31:N34) -> 5424.943714 | O35: =SUM(O31:O34) -> 5737.902693 | Q35: =RATE(COLUMN(O35) - COLUMN(K35), 0, -K35, O35) -> 0.05737154298

Sheet Labor (hidden)
B2: Participant Model: Labor Synergies
B3: Forging labor costs ($R millions)
D5: <-------------- Forecast --------------> | I5: St. Germain
B7: $R millions | C7: 2015 | D7: 2016 | E7: 2017 | F7: 2018 | G7: 2019 | I7: Facility 1 | J7: Facility 2 | K7: Facility 3 | L7: Facility 4
A8: 1 | B8: Forging headcount (thousands of FTEs) | C8: =C14/(C13/1000) ->  | D8: =D10/D9 ->  | E8: =E10/E9 ->  | F8: =F10/F9 ->  | G8: =G10/G9 ->  | I8: =#REF! ->  | J8: =#REF! ->  | K8: =#REF! ->  | L8: =#REF! -> 
A9: =A8+1 -> 2 | B9: Thousands units per FTE | C9: =C10/C8 ->  | D9: =C9 ->  | E9: =D9 ->  | F9: =E9 ->  | G9: =F9 ->  | I9: =#REF! ->  | J9: =#REF! ->  | K9: =#REF! ->  | L9: =#REF! -> 
A10: 3 | B10: Number of units (millions) | C10: =#REF! ->  | D10: =#REF! ->  | E10: =#REF! ->  | F10: =#REF! ->  | G10: =#REF! ->  | I10: 2376.865557 | J10: 1442.564366 | K10: 1178.845709 | L10: 2162.14933
A11: 4
A12: 5 | B12: Forging headcount (thousands of FTEs) | C12: =C8 ->  | D12: =D8 ->  | E12: =E8 ->  | F12: =F8 ->  | G12: =G8 ->  | I12: =I8 ->  | J12: =J8 ->  | K12: =K8 ->  | L12: =L8 -> 
A13: 6 | B13: Forging salary (in R$) | C13: =#REF! ->  | D13: =C13*(#REF!/#REF!) ->  | E13: =D13*(#REF!/#REF!) ->  | F13: =E13*(#REF!/#REF!) ->  | G13: =F13*(#REF!/#REF!) ->  | I13: =#REF! ->  | J13: =#REF! ->  | K13: =#REF! ->  | L13: =#REF! -> 
A14: 7 | B14: Forging labor costs ($R millions) | C14: 1262.36094 | D14: =D12*D13/1000 ->  | E14: =E12*E13/1000 ->  | F14: =F12*F13/1000 ->  | G14: =G12*G13/1000 ->  | I14: =I12*I13/1000 ->  | J14: =J12*J13/1000 ->  | K14: =K12*K13/1000 ->  | L14: =L12*L13/1000 -> 

Sheet Raw Materials (hidden)
B2: Participant Model: Raw Materials Synergies
B3: Improvement in Raw Materials Expense (R$ millions)
D5: <-------------- Forecast --------------> | I5: St. Germain
B7: Millions of units | C7: 2015 | D7: =C7+1 -> 2016 | E7: =D7+1 -> 2017 | F7: =E7+1 -> 2018 | G7: =F7+1 -> 2019 | I7: Facility 1 | J7: Facility 2 | K7: Facility 3 | L7: Facility 4
B8: Beer | C8: =#REF! ->  | D8: =#REF! ->  | E8: =#REF! ->  | F8: =#REF! ->  | G8: =#REF! ->  | I8: 2006.04731 | J8: 909.1860748 | K8: 453.6964535 | L8: 1919.389192
B9: Wines and spirits | C9: =#REF! ->  | D9: =#REF! ->  | E9: =#REF! ->  | F9: =#REF! ->  | G9: =#REF! ->  | I9: 179.0067016 | J9: 316.6536861 | K9: 399.069763 | L9: 112.1826474
B10: Soft drinks | C10: =#REF! ->  | D10: =#REF! ->  | E10: =#REF! ->  | F10: =#REF! ->  | G10: =#REF! ->  | I10: 98.85682183 | J10: 102.509616 | K10: 192.4805664 | L10: 108.0878221
B11: Consumer products | C11: =#REF! ->  | D11: =#REF! ->  | E11: =#REF! ->  | F11: =#REF! ->  | G11: =#REF! ->  | I11: 92.95472365 | J11: 114.2149892 | K11: 133.598926 | L11: 22.48966896
B12: Total units | C12: =SUM(C8:C11) ->  | D12: =SUM(D8:D11) ->  | E12: =SUM(E8:E11) ->  | F12: =SUM(F8:F11) ->  | G12: =SUM(G8:G11) ->  | I12: =SUM(I8:I11) -> 2376.865557 | J12: =SUM(J8:J11) -> 1442.564366 | K12: =SUM(K8:K11) -> 1178.845709 | L12: =SUM(L8:L11) -> 2162.14933
B14: Units per ton1
B15: Beer | C15: =C8/C21 ->  | D15: =C15 ->  | I15: =I8/I21 -> 262.0931826 | J15: 260.1766705 | K15: 256.75 | L15: 260.445428
B16: Wines and spirits | C16: =C9/C22 ->  | I16: 241.4825901 | J16: 241.2329012 | K16: 240.4273606 | L16: 241.4825901
B17: Soft drinks | C17: =C10/C23 ->  | I17: 130.8063842 | J17: 126.94029 | K17: 126.625 | L17: 130.689205
B18: Consumer products | C18: =C11/C24 ->  | I18: 298.682551 | J18: 296.6548496 | K18: 295.1985927 | L18: 297.3672581
B20: Millions of tons
B21: Beer | C21: =#REF! ->  | D21: =D8/D15 ->  | I21: 7.653946929 | J21: 3.494495002 | K21: 1.767074794 | L21: 7.369640568
B22: Wines and spirits | C22: =#REF! ->  | I22: 0.7412820178 | J22: 1.312647174 | K22: 1.659835062 | L22: 0.46455791
B23: Soft drinks | C23: =#REF! ->  | I23: 0.7557492121 | J23: 0.8075420024 | K23: 1.520083447 | L23: 0.827060063
B24: Consumer products | C24: =#REF! ->  | I24: 0.3112157819 | J24: 0.3850096816 | K24: 0.4525730452 | L24: 0.07562927104
B25: Millions of tons | C25: =SUM(C21:C24) ->  | D25: =SUM(D21:D24) ->  | E25: =SUM(E21:E24) ->  | F25: =SUM(F21:F24) ->  | G25: =SUM(G21:G24) ->  | I25: =SUM(I21:I24) -> 9.46219394 | J25: =SUM(J21:J24) -> 5.99969386 | K25: =SUM(K21:K24) -> 5.399566349 | L25: =SUM(L21:L24) -> 8.736887812
B27: Purchase price ton1 | C27: =C28/C25 ->  | D27: =C27*(1+#REF!) ->  | E27: =D27*(1+#REF!) ->  | F27: =E27*(1+#REF!) ->  | G27: =F27*(1+#REF!) ->  | I27: =#REF! ->  | J27: =#REF! ->  | K27: =#REF! ->  | L27: =#REF! -> 
B28: Raw materials (R$ millions)3 | C28: 1849.932578 | D28: =D25*D27 ->  | E28: =E25*E27 ->  | F28: =F25*F27 ->  | G28: =G25*G27 ->  | I28: =I25*I27 ->  | J28: =J25*J27 ->  | K28: =K25*K27 ->  | L28: =L25*L27 -> 
B30: 1 Raw materials with no synergies in Case C will only approximate raw materials from Case A, because each product
B31: type uses different tonnage.
